[Event "XXII Rochefort Chess Masters"]
[Site "ROCHEFORT, France"]
[Date "2024.02.17"]
[Round "1.1"]
[White "Vigneau-Zorraquino, Cioran"]
[Black "Romanov, Evgeny"]
[Result "0-1"]
[TimeControl "1h30/40 - 30' + [30'']"]
[WhiteElo "2054"]
[BlackElo "2593"]

1. e4 {[%clk 01:30:57]} {[%emt 00:00:02]} c5 {[%clk 01:28:32]} {[%emt
00:02:28]} 2. Nf3 {[%clk 01:31:24]} {[%emt 00:00:04]} e6 {[%clk 01:28:49]}
{[%emt 00:00:12]} 3. d4 {[%clk 01:31:52]} {[%emt 00:00:02]} cxd4 {[%clk
01:29:12]} {[%emt 00:00:08]} 4. Nxd4 {[%clk 01:32:19]} {[%emt 00:00:02]} a6
{[%clk 01:29:33]} {[%emt 00:00:08]} 5. Nc3 {[%clk 01:32:47]} {[%emt 00:00:03]}
b5 {[%clk 01:29:40]} {[%emt 00:00:22]} 6. Bd3 {[%clk 01:33:14]} {[%emt
00:00:03]} Bb7 {[%clk 01:29:50]} {[%emt 00:00:20]} 7. O-O {[%clk 01:33:34]}
{[%emt 00:00:09]} Nc6 {[%clk 01:30:09]} {[%emt 00:00:11]} 8. Nxc6 {[%clk
01:34:00]} {[%emt 00:00:05]} Bxc6 {[%clk 01:30:31]} {[%emt 00:00:08]} 9. a3
{[%clk 01:33:57]} {[%emt 00:00:34]} Qb8 {[%clk 01:29:31]} {[%emt 00:01:29]} 10.
f4 {[%clk 01:28:47]} {[%emt 00:05:41]} Qb7 {[%clk 01:23:14]} {[%emt 00:06:47]}
11. Qe2 {[%clk 01:28:16]} {[%emt 00:01:00]} Bc5+ {[%clk 01:22:23]} {[%emt
00:01:21]} 12. Be3 {[%clk 01:26:31]} {[%emt 00:02:15]} Bxe3+ {[%clk 01:08:04]}
{[%emt 00:14:50]} 13. Qxe3 {[%clk 01:26:57]} {[%emt 00:00:04]} Ne7 {[%clk
01:08:08]} {[%emt 00:00:26]} 14. Rae1 {[%clk 01:25:20]} {[%emt 00:02:07]} O-O
{[%clk 01:06:40]} {[%emt 00:01:58]} 15. Qh3 {[%clk 01:22:49]} {[%emt 00:03:01]}
f6 {[%clk 01:03:53]} {[%emt 00:03:16]} 16. Nd5 {[%clk 01:19:22]} {[%emt
00:03:57]} Rf7 {[%clk 01:00:17]} {[%emt 00:04:06]} 17. Nb4 {[%clk 01:17:08]}
{[%emt 00:02:45]} Qb6+ {[%clk 00:57:26]} {[%emt 00:03:20]} 18. Qe3 {[%clk
01:12:48]} {[%emt 00:04:50]} Qxe3+ {[%clk 00:57:38]} {[%emt 00:00:19]} 19. Rxe3
{[%clk 01:13:15]} {[%emt 00:00:03]} Bb7 {[%clk 00:58:02]} {[%emt 00:00:06]} 20.
c4 {[%clk 01:13:07]} {[%emt 00:00:39]} a5 {[%clk 00:51:19]} {[%emt 00:07:12]}
21. Na2 {[%clk 01:07:44]} {[%emt 00:05:53]} bxc4 {[%clk 00:50:46]} {[%emt
00:01:04]} 22. Bxc4 {[%clk 01:08:11]} {[%emt 00:00:03]} f5 {[%clk 00:50:52]}
{[%emt 00:00:24]} 23. e5 {[%clk 01:03:14]} {[%emt 00:05:27]} g5 {[%clk
00:48:53]} {[%emt 00:02:29]} 24. fxg5 {[%clk 01:00:49]} {[%emt 00:02:55]} Rc8
{[%clk 00:44:35]} {[%emt 00:04:47]} 25. b3 {[%clk 00:39:30]} {[%emt 00:21:50]}
Rg7 {[%clk 00:44:13]} {[%emt 00:00:52]} 26. Rd1 {[%clk 00:32:59]} {[%emt
00:07:01]} Nd5 {[%clk 00:42:33]} {[%emt 00:02:10]} 27. Bxd5 {[%clk 00:29:34]}
{[%emt 00:03:56]} Bxd5 {[%clk 00:42:53]} {[%emt 00:00:09]} 28. Nc3 {[%clk
00:29:54]} {[%emt 00:00:10]} Bxb3 {[%clk 00:41:15]} {[%emt 00:02:08]} 29. Rd4
{[%clk 00:30:06]} {[%emt 00:00:18]} Rxg5 {[%clk 00:30:00]} {[%emt 00:11:44]} 30.
Rxd7 {[%clk 00:30:32]} {[%emt 00:00:05]} f4 {[%clk 00:29:31]} {[%emt 00:00:59]}
31. Rh3 {[%clk 00:30:55]} {[%emt 00:00:07]} Bc2 {[%clk 00:28:42]} {[%emt
00:01:19]} 32. Ne2 {[%clk 00:31:22]} {[%emt 00:00:04]} Rf8 {[%clk 00:20:57]}
{[%emt 00:08:15]} 33. Nd4 {[%clk 00:30:30]} {[%emt 00:01:23]} Be4 {[%clk
00:20:37]} {[%emt 00:00:50]} 34. g3 {[%clk 00:24:26]} {[%emt 00:06:35]} f3
{[%clk 00:16:32]} {[%emt 00:04:34]} 35. Kf2 {[%clk 00:24:39]} {[%emt 00:00:17]}
Rxe5 {[%clk 00:16:38]} {[%emt 00:00:24]} 36. g4 {[%clk 00:24:09]} {[%emt
00:01:00]} Rc5 {[%clk 00:13:18]} {[%emt 00:03:50]} 37. Nxe6 {[%clk 00:18:34]}
{[%emt 00:06:06]} Rc2+ {[%clk 00:13:30]} {[%emt 00:00:18]} 38. Ke3 {[%clk
00:19:02]} {[%emt 00:00:02]} Re2+ {[%clk 00:13:08]} {[%emt 00:00:51]} 39. Kd4
{[%emt 00:00:10]} 0-1

[Event "XXII Rochefort Chess Masters"]
[Site "ROCHEFORT, France"]
[Date "2024.02.17"]
[Round "1.4"]
[White "Roshka, Yevgeniy"]
[Black "Charles, Simon"]
[Result "1-0"]
[TimeControl "1h30/40 - 30' + [30'']"]
[WhiteElo "2474"]
[BlackElo "2027"]

1. d4 {[%clk 01:16:32]} {[%emt 00:14:21]} Nf6 {[%clk 01:30:01]} {[%emt
00:01:05]} 2. c4 {[%clk 01:16:56]} {[%emt 00:00:05]} c5 {[%clk 01:30:26]}
{[%emt 00:00:06]} 3. d5 {[%clk 01:16:55]} {[%emt 00:00:31]} e6 {[%clk
01:30:49]} {[%emt 00:00:07]} 4. Nc3 {[%clk 01:17:03]} {[%emt 00:00:22]} exd5
{[%clk 01:31:11]} {[%emt 00:00:09]} 5. cxd5 {[%clk 01:17:29]} {[%emt 00:00:04]}
d6 {[%clk 01:31:33]} {[%emt 00:00:09]} 6. Nf3 {[%clk 01:17:38]} {[%emt
00:00:20]} g6 {[%clk 01:31:43]} {[%emt 00:00:20]} 7. Nd2 {[%clk 01:18:03]}
{[%emt 00:00:05]} Bg7 {[%clk 01:32:04]} {[%emt 00:00:09]} 8. Nc4 {[%clk
01:18:29]} {[%emt 00:00:04]} O-O {[%clk 01:31:00]} {[%emt 00:01:34]} 9. Bf4
{[%clk 01:18:54]} {[%emt 00:00:05]} Ne8 {[%clk 01:31:22]} {[%emt 00:00:08]} 10.
e3 {[%clk 01:18:55]} {[%emt 00:00:28]} g5 {[%clk 01:25:24]} {[%emt 00:06:29]}
11. Bg3 {[%clk 01:19:16]} {[%emt 00:00:08]} f5 {[%clk 01:22:11]} {[%emt
00:03:43]} 12. Qd2 {[%clk 01:16:48]} {[%emt 00:02:57]} a6 {[%clk 01:18:34]}
{[%emt 00:04:07]} 13. a4 {[%clk 01:16:49]} {[%emt 00:00:30]} Qf6 {[%clk
01:17:54]} {[%emt 00:01:11]} 14. h4 {[%clk 01:16:37]} {[%emt 00:00:42]} Nd7
{[%clk 01:15:04]} {[%emt 00:03:20]} 15. hxg5 {[%clk 01:16:59]} {[%emt
00:00:07]} Qxg5 {[%clk 01:12:49]} {[%emt 00:02:45]} 16. Nxd6 {[%clk 01:16:22]}
{[%emt 00:01:07]} f4 {[%clk 01:10:01]} {[%emt 00:03:18]} 17. Bxf4 {[%clk
01:14:30]} {[%emt 00:02:22]} Rxf4 {[%clk 01:09:28]} {[%emt 00:01:03]} 18. Nxe8
{[%clk 01:14:53]} {[%emt 00:00:06]} Rb4 {[%clk 01:05:57]} {[%emt 00:04:01]} 19.
Rh3 {[%clk 00:59:44]} {[%emt 00:15:39]} Nf6 {[%clk 00:58:08]} {[%emt 00:08:19]}
20. Rg3 {[%clk 00:59:44]} {[%emt 00:00:31]} Rg4 {[%clk 00:57:34]} {[%emt
00:01:04]} 21. Rxg4 {[%clk 00:58:40]} {[%emt 00:01:34]} Bxg4 {[%clk 00:55:46]}
{[%emt 00:02:19]} 22. Nxg7 {[%clk 00:59:04]} {[%emt 00:00:06]} Kxg7 {[%clk
00:54:43]} {[%emt 00:01:33]} 23. f3 {[%clk 00:57:09]} {[%emt 00:02:24]} Bd7
{[%clk 00:52:55]} {[%emt 00:02:18]} 24. e4 {[%clk 00:57:32]} {[%emt 00:00:08]}
Qg3+ {[%clk 00:52:13]} {[%emt 00:01:12]} 25. Qf2 {[%clk 00:57:37]} {[%emt
00:00:24]} Qf4 {[%clk 00:51:03]} {[%emt 00:01:40]} 26. Ne2 {[%clk 00:57:29]}
{[%emt 00:00:38]} Qh6 {[%clk 00:50:33]} {[%emt 00:01:00]} 27. Qg3+ {[%clk
00:57:25]} {[%emt 00:00:33]} Kf7 {[%clk 00:46:52]} {[%emt 00:04:11]} 28. Qf4
{[%clk 00:55:10]} {[%emt 00:02:45]} 1-0

[Event "XXII Rochefort Chess Masters"]
[Site "ROCHEFORT, France"]
[Date "2024.02.17"]
[Round "1.2"]
[White "Laurent-Paoli, Pierre"]
[Black "Serrier, Mathis"]
[Result "1-0"]
[TimeControl "1h30/40 - 30' + [30'']"]
[WhiteElo "2537"]
[BlackElo "2049"]

1. d4 {[%clk 01:30:08]} {[%emt 00:00:50]} Nf6 {[%clk 01:30:54]} {[%emt
00:00:07]} 2. c4 {[%clk 01:30:03]} {[%emt 00:00:35]} c5 {[%clk 01:31:18]}
{[%emt 00:00:06]} 3. d5 {[%clk 01:29:59]} {[%emt 00:00:33]} e6 {[%clk
01:31:43]} {[%emt 00:00:06]} 4. Nc3 {[%clk 01:30:07]} {[%emt 00:00:22]} exd5
{[%clk 01:32:05]} {[%emt 00:00:08]} 5. cxd5 {[%clk 01:30:32]} {[%emt 00:00:05]}
d6 {[%clk 01:32:30]} {[%emt 00:00:06]} 6. e4 {[%clk 01:24:59]} {[%emt
00:06:02]} g6 {[%clk 01:32:35]} {[%emt 00:00:25]} 7. f4 {[%clk 01:25:23]}
{[%emt 00:00:06]} Bg7 {[%clk 01:32:59]} {[%emt 00:00:06]} 8. Bb5+ {[%clk
01:25:50]} {[%emt 00:00:02]} Nfd7 {[%clk 01:33:22]} {[%emt 00:00:08]} 9. Be2
{[%clk 01:21:58]} {[%emt 00:04:22]} O-O {[%clk 01:31:06]} {[%emt 00:02:46]} 10.
Nf3 {[%clk 01:22:08]} {[%emt 00:00:19]} Re8 {[%clk 01:24:32]} {[%emt 00:07:05]}
11. O-O {[%clk 01:21:48]} {[%emt 00:00:48]} f5 {[%clk 01:12:02]} {[%emt
00:13:02]} 12. e5 {[%clk 01:13:58]} {[%emt 00:08:19]} dxe5 {[%clk 01:09:44]}
{[%emt 00:02:48]} 13. d6 {[%clk 01:14:21]} {[%emt 00:00:07]} e4 {[%clk
00:42:28]} {[%emt 00:27:46]} 14. Bc4+ {[%clk 01:10:21]} {[%emt 00:04:30]} Kh8
{[%clk 00:41:11]} {[%emt 00:01:48]} 15. Ng5 {[%clk 01:10:42]} {[%emt 00:00:09]}
Bxc3 {[%clk 00:34:52]} {[%emt 00:06:49]} 16. bxc3 {[%clk 00:42:58]} {[%emt
00:28:14]} Qf6 {[%clk 00:32:19]} {[%emt 00:03:02]} 17. Qe1 {[%clk 00:36:06]}
{[%emt 00:07:22]} h6 {[%clk 00:27:05]} {[%emt 00:05:44]} 18. Be3 {[%clk
00:30:12]} {[%emt 00:06:23]} hxg5 {[%clk 00:22:07]} {[%emt 00:05:28]} 19. fxg5
{[%clk 00:30:39]} {[%emt 00:00:04]} Qg7 {[%clk 00:22:25]} {[%emt 00:00:12]} 20.
Rf4 {[%clk 00:25:54]} {[%emt 00:05:14]} Nf8 {[%clk 00:21:20]} {[%emt 00:01:35]}
21. Rh4+ {[%clk 00:26:18]} {[%emt 00:00:06]} Nh7 {[%clk 00:21:44]} {[%emt
00:00:05]} 22. Bxc5 {[%clk 00:26:43]} {[%emt 00:00:06]} Nc6 {[%clk 00:20:11]}
{[%emt 00:02:04]} 23. Bd5 {[%clk 00:24:23]} {[%emt 00:02:50]} Re5 {[%clk
00:19:08]} {[%emt 00:01:33]} 24. Rd1 {[%clk 00:24:06]} {[%emt 00:00:47]} Be6
{[%clk 00:17:16]} {[%emt 00:02:21]} 25. c4 {[%clk 00:24:29]} {[%emt 00:00:07]}
Kg8 {[%clk 00:11:55]} {[%emt 00:05:51]} 26. Be3 {[%clk 00:24:53]} {[%emt
00:00:06]} Qf7 {[%clk 00:11:17]} {[%emt 00:01:08]} 27. Bxc6 {[%clk 00:23:15]}
{[%emt 00:02:09]} Bxc4 {[%clk 00:08:49]} {[%emt 00:02:58]} 28. Qc3 {[%clk
00:19:15]} {[%emt 00:04:30]} Qe6 {[%clk 00:03:02]} {[%emt 00:06:17]} 29. Bd7
{[%clk 00:18:30]} {[%emt 00:01:16]} Qxd7 {[%clk 00:02:51]} {[%emt 00:00:41]} 30.
Qxe5 {[%clk 00:18:55]} {[%emt 00:00:05]} Re8 {[%clk 00:02:57]} {[%emt
00:00:23]} 31. Qd4 {[%clk 00:19:08]} {[%emt 00:00:17]} b5 {[%clk 00:03:04]}
{[%emt 00:00:24]} 32. Bc1 {[%clk 00:16:38]} {[%emt 00:03:00]} Qg7 {[%clk
00:02:41]} {[%emt 00:00:53]} 33. Qxg7+ {[%clk 00:16:31]} {[%emt 00:00:37]} Kxg7
{[%clk 00:03:07]} {[%emt 00:00:04]} 34. d7 {[%clk 00:16:33]} {[%emt 00:00:28]}
Rd8 {[%clk 00:03:28]} {[%emt 00:00:08]} 35. Bb2+ {[%clk 00:17:01]} {[%emt
00:00:03]} Kg8 {[%clk 00:03:48]} {[%emt 00:00:10]} 36. Rxh7 {[%clk 00:17:24]}
{[%emt 00:00:08]} Kxh7 {[%clk 00:04:10]} {[%emt 00:00:08]} 37. Bf6 {[%clk
00:17:51]} {[%emt 00:00:03]} 1-0

[Event "XXII Rochefort Chess Masters"]
[Site "ROCHEFORT, France"]
[Date "2024.02.17"]
[Round "1.5"]
[White "Belluire, Beatrice"]
[Black "Droin, Augustin"]
[Result "1/2-1/2"]
[TimeControl "1h30/40 - 30' + [30'']"]
[WhiteElo "2026"]
[BlackElo "2471"]

1. e4 {[%clk 01:30:58]} {[%emt 00:00:01]} c5 {[%clk 01:30:56]} {[%emt
00:00:04]} 2. Nf3 {[%clk 01:31:18]} {[%emt 00:00:10]} d6 {[%clk 01:31:22]}
{[%emt 00:00:05]} 3. Bb5+ {[%clk 01:31:39]} {[%emt 00:00:09]} Nd7 {[%clk
01:31:47]} {[%emt 00:00:05]} 4. a4 {[%clk 01:31:53]} {[%emt 00:00:15]} Ngf6
{[%clk 01:32:05]} {[%emt 00:00:12]} 5. Nc3 {[%clk 01:32:10]} {[%emt 00:00:14]}
g6 {[%clk 01:32:20]} {[%emt 00:00:15]} 6. a5 {[%clk 01:30:50]} {[%emt
00:01:50]} Bg7 {[%clk 01:32:24]} {[%emt 00:00:26]} 7. O-O {[%clk 01:30:55]}
{[%emt 00:00:24]} a6 {[%clk 01:32:41]} {[%emt 00:00:13]} 8. Be2 {[%clk
01:28:13]} {[%emt 00:03:12]} O-O {[%clk 01:32:50]} {[%emt 00:00:21]} 9. d3
{[%clk 01:27:22]} {[%emt 00:01:21]} b5 {[%clk 01:27:38]} {[%emt 00:05:42]} 10.
axb6 {[%clk 01:27:40]} {[%emt 00:00:12]} Bb7 {[%clk 01:28:03]} {[%emt
00:00:05]} 11. h3 {[%clk 01:18:44]} {[%emt 00:09:25]} Qxb6 {[%clk 01:27:49]}
{[%emt 00:00:44]} 12. Be3 {[%clk 01:11:53]} {[%emt 00:07:22]} d5 {[%clk
01:08:29]} {[%emt 00:19:50]} 13. exd5 {[%clk 01:01:36]} {[%emt 00:10:47]} Nxd5
{[%clk 01:08:54]} {[%emt 00:00:05]} 14. Nxd5 {[%clk 01:01:24]} {[%emt
00:00:41]} Bxd5 {[%clk 01:09:17]} {[%emt 00:00:08]} 15. d4 {[%clk 00:59:30]}
{[%emt 00:02:24]} c4 {[%clk 01:05:10]} {[%emt 00:04:37]} 16. Qd2 {[%clk
00:51:14]} {[%emt 00:08:46]} Rfb8 {[%clk 00:58:53]} {[%emt 00:06:48]} 17. Qa5
{[%clk 00:47:23]} {[%emt 00:04:20]} Qc6 {[%clk 00:53:28]} {[%emt 00:05:55]} 18.
Qc3 {[%clk 00:39:26]} {[%emt 00:08:28]} e6 {[%clk 00:51:26]} {[%emt 00:02:32]}
19. Rfb1 {[%clk 00:37:39]} {[%emt 00:02:17]} Bf8 {[%clk 00:51:41]} {[%emt
00:00:15]} 20. Bf4 {[%clk 00:34:35]} {[%emt 00:03:34]} Rb6 {[%clk 00:50:23]}
{[%emt 00:01:48]} 21. Qe3 {[%clk 00:33:44]} {[%emt 00:01:22]} Ra7 {[%clk
00:46:32]} {[%emt 00:04:21]} 22. Bh6 {[%clk 00:31:34]} {[%emt 00:02:40]} Bxh6
{[%clk 00:40:03]} {[%emt 00:06:59]} 23. Qxh6 {[%clk 00:32:02]} {[%emt
00:00:02]} Rab7 {[%clk 00:40:28]} {[%emt 00:00:05]} 24. Qc1 {[%clk 00:28:53]}
{[%emt 00:03:39]} Rb8 {[%clk 00:37:47]} {[%emt 00:03:12]} 25. Ra3 {[%clk
00:26:42]} {[%emt 00:02:40]} Qb7 {[%clk 00:35:03]} {[%emt 00:03:14]} 26. Rc3
{[%clk 00:22:59]} {[%emt 00:04:13]} Rb4 {[%clk 00:33:02]} {[%emt 00:02:32]} 27.
Bf1 {[%clk 00:21:49]} {[%emt 00:01:40]} Nb6 {[%clk 00:31:56]} {[%emt 00:01:36]}
28. Ne5 {[%clk 00:18:30]} {[%emt 00:03:49]} f6 {[%clk 00:23:13]} {[%emt
00:09:13]} 29. Ng4 {[%clk 00:18:18]} {[%emt 00:00:42]} f5 {[%clk 00:22:20]}
{[%emt 00:01:24]} 30. Nf6+ {[%clk 00:15:34]} {[%emt 00:03:14]} Kg7 {[%clk
00:22:13]} {[%emt 00:00:37]} 31. Nxd5 {[%clk 00:15:57]} {[%emt 00:00:06]} Qxd5
{[%clk 00:21:59]} {[%emt 00:00:45]} 32. Qg5 {[%clk 00:12:26]} {[%emt 00:04:01]}
Qd6 {[%clk 00:19:22]} {[%emt 00:03:07]} 33. h4 {[%clk 00:11:09]} {[%emt
00:01:46]} h6 {[%clk 00:17:57]} {[%emt 00:01:55]} 34. Qd2 {[%clk 00:11:26]}
{[%emt 00:00:13]} e5 {[%clk 00:17:20]} {[%emt 00:01:08]} 35. d5 {[%clk
00:09:20]} {[%emt 00:02:36]} Qxd5 {[%clk 00:10:38]} {[%emt 00:07:12]} 36. Qxd5
{[%clk 00:08:53]} {[%emt 00:00:57]} Nxd5 {[%clk 00:11:06]} {[%emt 00:00:02]} 37.
Rxc4 {[%clk 00:08:08]} {[%emt 00:01:14]} Rxc4 {[%clk 00:11:34]} {[%emt
00:00:02]} 38. Bxc4 {[%clk 00:08:37]} {[%emt 00:00:01]} Nc3 {[%clk 00:12:03]}
39. Ra1 {[%clk 00:00:59]} {[%emt 00:08:08]} Rxb2 {[%clk 00:12:28]} {[%emt
00:00:04]} 40. Rxa6 {[%clk 00:01:22]} {[%emt 00:00:07]} Rxc2 {[%clk 00:12:01]}
{[%emt 00:00:57]} 41. Ra7+ {[%clk 00:00:32]} {[%emt 00:01:20]} Kf8 {[%clk
00:12:25]} {[%emt 00:00:06]} 42. h5 {[%clk 00:18:25]} {[%emt 00:12:37]} Rc1+
{[%clk 00:26:01]} {[%emt 00:16:55]} 43. Kh2 {[%clk 00:18:53]} {[%emt 00:00:02]}
Ne4 {[%clk 00:26:28]} {[%emt 00:00:03]} 44. Ba2 {[%clk 00:12:49]} {[%emt
00:06:34]} gxh5 {[%clk 00:24:01]} {[%emt 00:02:56]} 45. Rf7+ {[%clk 00:12:24]}
{[%emt 00:00:55]} Ke8 {[%clk 00:24:29]} {[%emt 00:00:03]} 46. Rxf5 {[%clk
00:12:36]} {[%emt 00:00:18]} Rc5 {[%clk 00:24:54]} {[%emt 00:00:05]} 47. f3
{[%clk 00:11:08]} {[%emt 00:01:58]} Ng5 {[%clk 00:23:41]} {[%emt 00:01:43]} 48.
f4 {[%clk 00:10:54]} {[%emt 00:00:44]} Ne4 {[%clk 00:24:04]} {[%emt 00:00:07]}
49. Rxe5+ {[%clk 00:10:23]} {[%emt 00:01:02]} Rxe5 {[%clk 00:24:20]} {[%emt
00:00:14]} 50. fxe5 {[%clk 00:10:52]} {[%emt 00:00:01]} Nf2 {[%clk 00:23:28]}
{[%emt 00:01:22]} 51. Kg3 {[%clk 00:10:30]} {[%emt 00:00:52]} Nd3 {[%clk
00:23:54]} {[%emt 00:00:03]} 52. Kh4 {[%clk 00:09:49]} {[%emt 00:01:10]} Nxe5
{[%clk 00:24:19]} {[%emt 00:00:05]} 53. Kxh5 {[%clk 00:10:14]} {[%emt
00:00:05]} Ke7 {[%clk 00:24:48]} {[%emt 00:00:02]} 54. Kxh6 {[%clk 00:10:32]}
{[%emt 00:00:12]} Kf6 {[%clk 00:25:14]} {[%emt 00:00:03]} 55. Bb1 {[%clk
00:10:17]} {[%emt 00:00:46]} Nf7 {[%clk 00:25:39]} {[%emt 00:00:05]} 56. Kh5
{[%clk 00:10:36]} {[%emt 00:00:11]} Ng5 {[%clk 00:25:54]} {[%emt 00:00:15]} 57.
Bc2 {[%clk 00:10:09]} {[%emt 00:00:57]} Ne6 {[%clk 00:26:18]} {[%emt 00:00:06]}
58. g3 {[%clk 00:10:04]} {[%emt 00:00:36]} Ng5 {[%clk 00:26:44]} {[%emt
00:00:04]} 59. g4 {[%clk 00:10:17]} {[%emt 00:00:17]} Nf3 {[%clk 00:27:08]}
{[%emt 00:00:06]} 60. Be4 {[%clk 00:10:15]} {[%emt 00:00:32]} Ng5 {[%clk
00:27:32]} {[%emt 00:00:06]} 61. Bd5 {[%clk 00:10:31]} {[%emt 00:00:13]} Nh3
{[%clk 00:27:56]} {[%emt 00:00:06]} 62. Kh4 {[%clk 00:10:26]} {[%emt 00:00:35]}
Ng5 {[%clk 00:28:14]} {[%emt 00:00:12]} 63. Bc6 {[%clk 00:10:28]} {[%emt
00:00:29]} Nf7 {[%clk 00:28:38]} {[%emt 00:00:06]} 64. Bb5 {[%clk 00:10:06]}
{[%emt 00:00:52]} 1/2-1/2



[ePGN "0.1;DGT LiveChess/2.2.6"]

[Event "XXII Rochefort Chess Masters"]
[Site "ROCHEFORT, France"]
[Date "2024.02.18"]
[Round "2.2"]
[White "Filip, Andrei"]
[Black "Laurent-Paoli, Pierre"]
[Result "0-1"]
[TimeControl "1h30/40 - 30' + [30'']"]
[WhiteElo "2261"]
[BlackElo "2537"]

1. e4 {[%clk 01:30:51]} {[%emt 00:00:08]} c6 {[%clk 01:21:20]} {[%emt
00:09:41]} 2. d4 {[%clk 01:31:12]} {[%emt 00:00:09]} d5 {[%clk 01:21:44]}
{[%emt 00:00:06]} 3. e5 {[%clk 01:31:38]} {[%emt 00:00:04]} Bf5 {[%clk
01:22:00]} {[%emt 00:00:13]} 4. h4 {[%clk 01:32:00]} {[%emt 00:00:08]} h6
{[%clk 01:21:18]} {[%emt 00:01:13]} 5. c4 {[%clk 01:26:46]} {[%emt 00:05:44]}
e6 {[%clk 01:19:30]} {[%emt 00:02:19]} 6. Nc3 {[%clk 01:27:07]} {[%emt
00:00:08]} Ne7 {[%clk 01:09:41]} {[%emt 00:10:18]} 7. Nge2 {[%clk 01:24:36]}
{[%emt 00:03:02]} Nd7 {[%clk 01:08:07]} {[%emt 00:02:04]} 8. Be3 {[%clk
01:18:11]} {[%emt 00:06:55]} dxc4 {[%clk 01:00:16]} {[%emt 00:08:21]} 9. Ng3
{[%clk 01:17:53]} {[%emt 00:00:48]} b5 {[%clk 01:00:08]} {[%emt 00:00:38]} 10.
a4 {[%clk 01:09:22]} {[%emt 00:09:00]} a6 {[%clk 00:57:31]} {[%emt 00:03:07]}
11. Qf3 {[%clk 01:03:02]} {[%emt 00:06:49]} Bh7 {[%clk 00:55:51]} {[%emt
00:02:10]} 12. Be2 {[%clk 00:56:45]} {[%emt 00:06:47]} Nd5 {[%clk 00:51:07]}
{[%emt 00:05:14]} 13. Nce4 {[%clk 00:52:17]} {[%emt 00:04:57]} f5 {[%clk
00:47:21]} {[%emt 00:04:17]} 14. Nd2 {[%clk 00:36:58]} {[%emt 00:15:49]} Bb4
{[%clk 00:42:56]} {[%emt 00:04:55]} 15. Nh5 {[%clk 00:33:13]} {[%emt 00:04:15]}
Qe7 {[%clk 00:34:59]} {[%emt 00:08:28]} 16. axb5 {[%clk 00:31:57]} {[%emt
00:01:45]} cxb5 {[%clk 00:35:21]} {[%emt 00:00:08]} 17. Nf4 {[%clk 00:26:21]}
{[%emt 00:06:06]} N7b6 {[%clk 00:35:30]} {[%emt 00:00:21]} 18. g4 {[%clk
00:24:40]} {[%emt 00:02:11]} fxg4 {[%clk 00:31:38]} {[%emt 00:04:23]} 19. Qxg4
{[%clk 00:24:49]} {[%emt 00:00:21]} Nxf4 {[%clk 00:31:37]} {[%emt 00:00:31]} 20.
Bxf4 {[%clk 00:24:51]} {[%emt 00:00:28]} Nd5 {[%clk 00:30:08]} {[%emt
00:01:58]} 21. Bf3 {[%clk 00:20:27]} {[%emt 00:04:55]} Bf5 {[%clk 00:27:16]}
{[%emt 00:03:22]} 22. Qg3 {[%clk 00:20:22]} {[%emt 00:00:35]} a5 {[%clk
00:25:00]} {[%emt 00:02:45]} 23. Rg1 {[%clk 00:19:31]} {[%emt 00:01:21]} O-O-O
{[%clk 00:24:28]} {[%emt 00:01:03]} 24. Bxd5 {[%clk 00:18:47]} {[%emt
00:01:14]} Rxd5 {[%clk 00:24:37]} {[%emt 00:00:21]} 0-1